bitfinex/quotes_ETHUSD_20250217
["timestamp","ask_amount","ask_price","bid_price","bid_amount"]
[1739780975403,0.0992,2692.4,2692.3,0.05050771]
[1739780975820,0.0992,2692.4,2692.2,0.55]
[1739780976116,0.0992,2692.4,2692.3,0.05050771]
[1739780976303,0.0992,2692.4,2692.2,0.55]
[1739780976499,3.81336,2692.4,2692.2,0.55]
[1739780976707,3.81336,2692.4,2692.3,0.05050771]
[1739780976889,3.81336,2692.4,2692.2,0.55]
[1739780977091,3.81336,2692.4,2692.3,0.05050771]
[1739780977415,0.0992,2692.4,2691.9,4.54465]
[1739780977618,3.81336,2692.4,2692.3,0.05050771]
[1739780978115,3.81336,2692.4,2692.0,0.55]
[1739780978323,3.81336,2692.4,2692.1,0.050297]
[1739780978619,0.0992,2692.4,2692.1,0.050297]
[1739780978824,3.71443,2692.2,2692.1,0.050297]
[1739780979015,3.71443,2692.2,2691.8,0.55]
[1739780979191,3.71443,2692.2,2692.1,0.050297]
[1739780979391,3.71443,2692.2,2691.8,0.55]
[1739780979713,4.21013,2692.2,2691.8,0.55]
[1739780980043,4.21013,2692.2,2691.9,0.050297]
[1739780980175,3.71467,2692.1,2691.9,0.050297]
[1739780980391,3.98771,2692.0,2691.9,0.050297]
[1739780980591,3.71487,2691.9,2691.5,0.7592]
[1739780981490,3.71487,2691.9,2691.6,0.050297]
[1739780981714,0.273,2692.0,2691.6,0.050297]
[1739780981919,3.98779,2692.0,2691.6,0.050297]
[1739780982535,3.71485,2691.9,2691.6,0.050297]
[1739780983592,0.4957,2691.8,2691.6,0.050297]
[1739780983928,0.4957,2691.8,2691.5,0.55]
[1739780984503,0.4957,2691.8,2691.6,0.050297]
[1739780985515,3.71512,2691.7,2691.6,0.050297]
[1739780985841,3.71527,2691.6,2691.1,4.48614]
[1739780985985,3.71527,2691.6,2691.1,0.7702]
[1739780986191,3.71527,2691.6,2691.2,0.050297]
[1739780986503,3.98772,2692.0,2691.2,0.050297]
[1739780986504,4.21135,2691.4,2691.2,0.050297]
[1739780986828,4.21135,2691.4,2691.0,0.55]
[1739780987032,4.21135,2691.4,2691.3,0.05067644]
[1739780987192,7.92697,2691.4,2691.0,0.55]
[1739780987392,3.71575,2691.3,2691.0,0.55]
[1739780989015,0.273,2691.2,2690.7,0.7702]
[1739780989206,3.71602,2691.1,2690.7,0.7702]
[1739780991147,0.4957,2691.0,2690.6,3.71662]
[1739780991354,4.21181,2691.0,2690.5,4.4869]
[1739780991584,0.4957,2691.0,2690.7,0.55]
[1739780992415,4.21187,2691.0,2690.6,0.55]
[1739780993452,0.4957,2691.0,2690.6,0.55]
[1739780993764,0.4957,2691.0,2690.6,4.26661]
[1739780993905,0.4957,2691.0,2690.6,5.141973]
[1739780996421,0.273,2690.9,2690.6,5.141973]
[1739780996623,0.273,2690.9,2690.7,0.05234626]
[1739780997524,0.273,2690.9,2690.7,3.76876626]
[1739780998759,0.273,2690.9,2690.7,0.05234626]
[1739780999351,0.273,2690.9,2690.7,3.76883626]
[1739780999706,0.273,2690.9,2690.7,0.05234626]
[1739781000748,4.21206,2690.8,2690.7,0.05234626]
[1739781001098,5.032196,2690.8,2690.7,0.05234626]
[1739781003350,3.71611,2691.0,2690.7,0.05234626]
[1739781003567,3.71582,2691.2,2690.7,0.05234626]
[1739781003770,0.273,2691.1,2690.7,3.76877626]
[1739781004107,0.273,2691.1,2690.8,3.71628]
[1739781004309,3.71515,2691.7,2691.0,0.55]
[1739781004310,0.4957,2691.7,2691.0,0.55]
[1739781004600,0.273,2691.8,2691.4,3.71553]
[1739781004753,0.273,2691.8,2691.2,7.27142265]
[1739781004754,0.273,2691.8,2691.3,0.55]
[1739781004956,3.71524,2691.7,2691.1,0.7976]
[1739781005253,3.71524,2691.7,2691.2,0.55]
[1739781005456,3.98799,2691.8,2691.4,0.55]
[1739781006201,3.71542,2691.5,2691.1,0.7976]
[1739781008104,3.71525,2691.7,2691.1,4.51345]
[1739781008401,3.71523,2691.7,2691.2,3.7158]
[1739781008875,3.71523,2691.7,2691.1,0.7976]
[1739781009235,3.71523,2691.7,2691.1,1.65952927]
[1739781009363,3.7154,2691.5,2691.1,1.65952927]
[1739781009903,3.71499,2691.8,2691.3,3.71567]
[1739781010211,0.273,2691.7,2691.4,0.55]
[1739781011071,3.98813,2691.7,2691.4,0.55]
[1739781011385,4.21105,2691.6,2691.1,0.7976]
[1739781011714,0.273,2691.7,2691.2,0.55]
[1739781011862,0.273,2691.7,2691.3,3.71563]
[1739781012801,0.273,2691.7,2691.2,0.55]
[1739781013017,3.9882,2691.7,2691.2,0.55]
[1739781013621,3.9882,2691.7,2691.2,4.26572]
[1739781013776,3.9882,2691.7,2691.2,5.143634]
[1739781013964,3.7149,2691.9,2691.4,3.71552]
[1739781014354,3.0,2692.3,2691.8,3.71496]
[1739781014355,0.4957,2692.3,2691.8,3.71496]
[1739781014507,0.0992,2692.4,2691.9,3.71484]
[1739781014707,0.0992,2692.4,2691.9,4.716014]
[1739781015220,3.81337,2692.4,2691.9,4.716014]
[1739781015417,3.71431,2692.3,2692.0,0.04828039]
[1739781015641,3.71431,2692.3,2691.9,0.55]
[1739781015642,0.0992,2692.4,2691.9,0.55]
[1739781015844,0.0992,2692.4,2692.1,0.04801071]
[1739781016150,0.0992,2692.4,2692.0,3.71466]
[1739781016353,0.0992,2692.4,2692.2,0.04762304]
[1739781016652,0.0992,2692.4,2692.3,0.04762304]
[1739781017019,0.0992,2692.4,2692.1,3.7145]
[1739781017225,0.0992,2692.4,2692.3,0.04737027]
[1739781017443,0.0992,2692.4,2692.1,3.7145]
[1739781017949,0.0992,2692.4,2691.9,4.16555]
[1739781018250,3.81336,2692.4,2691.9,0.4508]
[1739781018450,3.81336,2692.4,2692.0,0.04722706]
[1739781019204,0.0992,2692.4,2692.0,0.04722706]
[1739781019412,0.0992,2692.4,2692.1,3.7145]
[1739781019822,0.0992,2692.4,2692.2,0.04720179]
[1739781020021,3.81347,2692.4,2692.2,0.04720179]
[1739781020227,3.81347,2692.4,2692.0,3.7147]
[1739781020629,3.81347,2692.4,2692.1,0.04722706]
[1739781020827,0.507847,2692.4,2692.1,0.04722706]
[1739781021030,3.81339,2692.4,2691.8,4.51184]
[1739781021241,0.0992,2692.4,2692.2,0.04722706]
[1739781021445,3.71436,2692.3,2691.8,4.51184]
[1739781021864,3.71436,2692.3,2691.9,4.26483]
[1739781022275,0.0992,2692.4,2691.9,4.26483]
[1739781022485,0.0992,2692.4,2691.9,4.30197522]
[1739781022651,3.71436,2692.3,2691.9,0.55]
[1739781023478,3.7143,2692.3,2691.9,0.55]
[1739781023680,0.557401,2692.4,2691.9,0.55]
[1739781023988,3.71429,2692.3,2691.9,0.55]
[1739781024185,3.7145,2692.2,2691.9,0.55]
[1739781024682,0.0992,2692.4,2691.9,0.55]
[1739781024883,3.7143,2692.3,2691.9,4.26484]
[1739781025389,3.81336,2692.4,2691.9,4.26484]
[1739781025983,3.81336,2692.4,2691.9,4.26483]
[1739781027081,3.7143,2692.3,2691.9,0.55]
[1739781027283,3.81337,2692.4,2691.9,0.55]
[1739781027486,3.81337,2692.4,2691.9,4.26476]
[1739781027839,0.0992,2692.4,2692.2,3.71435]
[1739781028044,0.0992,2692.4,2692.3,1.3469]
[1739781028243,0.0992,2692.4,2692.3,5.06119]
[1739781028485,0.0992,2692.4,2692.3,1.3469]
[1739781029192,0.0992,2692.4,2692.3,5.06119]
[1739781029404,0.0992,2692.4,2692.3,5.94245899]
[1739781030052,0.0992,2692.4,2692.3,5.9893238]
[1739781034114,0.0992,2692.4,2692.3,2.2750338]
[1739781034306,0.0992,2692.4,2692.3,1.39376481]
[1739781036672,0.0992,2692.4,2692.3,5.10805481]
[1739781037371,0.0992,2692.4,2692.3,1.39376481]
[1739781037817,0.0992,2692.4,2692.3,0.59686481]
[1739781041511,0.0992,2692.4,2692.3,0.04686481]
[1739781041686,4.244251,2692.4,2692.3,0.04686481]
[1739781041884,0.4957,2692.3,2691.8,3.7149]
[1739781042088,3.71463,2692.1,2691.6,0.8308]
[1739781042400,3.71463,2692.1,2691.6,4.54603]
[1739781042801,3.71463,2692.1,2691.7,0.55]
[1739781043329,3.71471,2692.0,2691.6,0.8308]
[1739781044386,4.21041,2692.0,2691.4,8.19307]
[1739781044536,4.21041,2692.0,2691.5,0.55]
[1739781044704,4.21041,2692.0,2691.5,4.26539]
[1739781045098,4.21041,2692.0,2691.6,0.04699961]
[1739781045299,3.71488,2691.9,2691.6,0.04699961]
[1739781046042,4.21043,2692.0,2691.6,0.04699961]
[1739781046909,3.71485,2691.9,2691.6,0.04699961]
[1739781048321,3.715,2691.8,2691.6,0.04699961]
[1739781048540,3.71512,2691.7,2691.6,0.04699961]
[1739781048706,3.71512,2691.7,2691.2,4.47793]
[1739781048905,3.71512,2691.7,2691.6,0.04705859]
[1739781049105,4.458132,2691.7,2691.2,4.47793]
[1739781049306,4.21082,2691.7,2691.6,0.04711757]
[1739781049532,0.4957,2691.7,2691.2,4.47793]
[1739781049734,0.4957,2691.7,2691.6,0.04715128]
[1739781049931,4.21087,2691.7,2691.2,4.47793]
[1739781050137,4.21087,2691.7,2691.6,0.04715128]
[1739781050341,4.21087,2691.7,2691.2,4.47793]
[1739781050518,0.4957,2691.7,2691.6,0.04715128]
[1739781050735,0.4957,2691.7,2691.2,4.47789]
[1739781051049,0.4957,2691.7,2691.2,0.7622]
[1739781051050,3.71529,2691.6,2691.2,0.7622]
[1739781051249,4.21084,2691.7,2691.3,0.04715128]
[1739781051449,4.21084,2691.7,2691.2,4.47793]
[1739781051643,4.21084,2691.7,2691.3,3.76281128]
[1739781051878,4.21084,2691.7,2691.3,0.04715128]
[1739781052210,4.21084,2691.7,2691.2,4.47793]
[1739781052410,4.21084,2691.7,2691.3,0.04715128]
[1739781052610,4.21084,2691.7,2691.2,4.47793]
[1739781052848,4.21084,2691.7,2691.3,0.04715128]
[1739781053026,4.21084,2691.7,2691.2,8.19366]
[1739781053354,4.21084,2691.7,2691.3,0.04715128]
[1739781053514,4.21084,2691.7,2691.3,3.76281128]
[1739781055561,3.71506,2691.8,2691.4,0.04776631]
[1739781056767,0.4957,2691.9,2691.4,0.04776631]
[1739781056977,3.71457,2692.1,2691.6,4.47745]
[1739781057126,3.98771,2692.0,2691.6,0.7622]
[1739781057334,3.71488,2691.9,2691.7,0.04776631]
[1739781057571,0.4957,2691.8,2691.7,0.04776631]
[1739781058076,4.48341,2692.0,2691.7,0.04776631]
[1739781058243,4.48341,2692.0,2691.5,4.26537]
[1739781058439,4.48341,2692.0,2691.6,3.76300631]
[1739781058658,6.71453,2692.2,2691.8,0.829]
[1739781058881,0.273,2692.1,2691.8,0.829]
[1739781059028,0.273,2692.1,2691.9,0.04776631]
[1739781059437,3.81344,2692.4,2691.9,0.04776631]
[1739781059588,0.0992,2692.4,2692.1,4.5435]
[1739781059748,0.0992,2692.4,2692.2,3.71439]
[1739781059950,0.0992,2692.4,2692.2,0.04777474]
[1739781060598,0.0992,2692.4,2692.3,4.26429]
[1739781060795,0.0992,2692.4,2692.3,0.55]
[1739781060951,0.0992,2692.4,2692.2,4.26441]
[1739781061294,0.0992,2692.4,2692.3,0.04777474]
[1739781061442,0.0992,2692.4,2692.3,0.59777474]
[1739781061842,3.81335,2692.4,2692.3,0.04777474]
[1739781062042,3.71452,2692.2,2691.6,8.09977265]
[1739781062297,3.71465,2692.1,2691.7,0.04523986]
[1739781062790,0.0992,2692.4,2691.7,0.04523986]
[1739781062995,3.71471,2692.1,2691.7,0.04523986]
[1739781063226,3.71484,2692.0,2691.7,0.04523986]
[1739781063883,3.71471,2692.1,2691.7,0.04523986]
[1739781064401,3.71472,2692.0,2691.7,0.04523986]
[1739781064596,3.71486,2691.9,2691.7,0.04523986]
[1739781064983,3.71486,2691.9,2691.4,5.09453]
[1739781065328,3.71486,2691.9,2691.6,0.55]
[1739781065688,3.71486,2691.9,2691.4,4.54453]
[1739781066021,3.71486,2691.9,2691.5,0.55]
[1739781066187,3.71506,2691.8,2691.6,0.04523986]
[1739781066527,0.770292,2691.7,2691.3,0.55]
[1739781066824,3.71506,2691.8,2691.3,0.55]
[1739781067124,0.273,2691.9,2691.4,3.76110345]
[1739781067332,0.273,2691.9,2691.6,0.829]
[1739781067898,0.273,2691.9,2691.7,0.04559345]
[1739781068544,5.613,2692.3,2692.0,0.829]
[1739781068683,5.613,2692.3,2692.0,4.54365]
[1739781068888,5.613,2692.3,2692.1,0.55]
[1739781069125,5.613,2692.3,2692.1,4.31016345]
[1739781069284,5.613,2692.3,2692.1,5.1954748]
[1739781069285,5.34,2692.3,2692.1,5.1954748]
[1739781069701,5.34,2692.3,2692.1,8.9099548]
[1739781069885,5.34,2692.3,2692.2,4.26443]
[1739781070116,0.0992,2692.4,2692.3,0.55]
[1739781070634,0.0992,2692.4,2692.3,0.04534087]
[1739781070819,0.0992,2692.4,2692.2,0.55]
[1739781071022,0.0992,2692.4,2692.3,0.04534087]
[1739781071242,0.0992,2692.4,2692.2,0.55]
[1739781071444,4.194682,2692.4,2692.3,0.04534087]
[1739781071644,3.71432,2692.3,2691.8,4.26489]
[1739781071790,3.71432,2692.3,2691.9,0.59517252]
[1739781072307,0.0992,2692.4,2692.0,3.71464]
[1739781072893,0.0992,2692.4,2692.1,0.04517252]
[1739781073234,3.81342,2692.4,2691.9,4.26473]
[1739781073437,0.0992,2692.4,2691.9,0.55]
[1739781073735,3.71433,2692.3,2692.0,0.04517252]
[1739781074105,3.71451,2692.2,2692.0,0.04517252]
[1739781074311,3.71457,2692.1,2692.0,0.04517252]
[1739781074542,3.71473,2692.0,2691.5,3.7153]
[1739781074746,3.71486,2691.9,2691.4,0.8286]
[1739781075064,3.71505,2691.8,2691.5,0.04524827]
[1739781075259,3.71493,2691.9,2691.5,0.04524827]
[1739781075260,3.71513,2691.7,2691.5,0.04524827]
[1739781076418,3.71513,2691.7,2691.2,3.71574]
[1739781076688,3.71527,2691.6,2691.1,8.10016265]
[1739781076834,3.71527,2691.6,2691.3,0.04524827]
[1739781077030,3.71527,2691.6,2691.1,8.10016265]
[1739781077277,3.71527,2691.6,2691.2,0.04524827]
[1739781077588,4.136427,2691.6,2691.2,0.04524827]
[1739781078352,7.851807,2691.6,2691.2,0.04524827]
[1739781078779,4.136427,2691.6,2691.2,0.04524827]
[1739781079367,3.71541,2691.5,2691.2,0.04524827]
[1739781080052,3.71559,2691.4,2691.2,0.04524827]
[1739781080483,4.5007997,2691.4,2691.2,0.04524827]
[1739781080848,4.5007997,2691.4,2690.9,5.09232]
[1739781081040,0.7852097,2691.4,2691.0,0.04600606]
[1739781081240,3.71575,2691.3,2691.0,0.04600606]
[1739781082676,3.71595,2691.1,2691.0,0.04600606]
[1739781083080,3.71595,2691.1,2690.6,4.54284]
[1739781083284,3.71595,2691.1,2690.7,0.04609871]
[1739781084140,3.71617,2691.0,2690.7,0.04609871]
[1739781085068,3.71595,2691.1,2690.7,0.04609871]
[1739781085455,3.71612,2691.0,2690.7,0.04609871]
[1739781085883,3.71595,2691.1,2690.7,0.04609871]
[1739781086984,3.98882,2691.2,2690.7,3.76251871]
[1739781087184,4.21143,2691.3,2690.8,3.71629]
[1739781087486,0.273,2691.1,2690.9,0.04715986]
[1739781087780,0.273,2691.1,2690.7,3.71639]
[1739781087982,3.98895,2691.1,2691.0,0.04715986]
[1739781088184,7.705,2691.1,2690.6,4.54283]
[1739781088348,3.98895,2691.1,2691.0,0.04715986]
[1739781088551,3.7161,2691.0,2690.6,0.8262]
[1739781089887,3.7163,2690.9,2690.7,0.04715986]
[1739781090290,0.74852938,2691.8,2690.9,3.7707]
[1739781090491,0.0992,2692.4,2692.0,3.71468]
[1739781090791,0.0992,2692.4,2692.0,7.27029265]
[1739781090960,0.0992,2692.4,2692.1,0.0470335]
[1739781092089,0.0992,2692.4,2692.2,3.71431]
[1739781092690,0.0992,2692.4,2692.3,0.0470335]
[1739781092846,0.0992,2692.4,2692.2,3.71431]
[1739781093048,0.0992,2692.4,2692.3,0.0470335]
[1739781093250,0.0992,2692.4,2692.1,0.55]
[1739781093469,3.81338,2692.4,2692.2,0.0470335]
[1739781093814,4.566115,2692.4,2691.9,7.27043265]
[1739781093980,4.566115,2692.4,2692.3,0.04621669]
[1739781093981,0.0992,2692.4,2692.3,0.04621669]
[1739781094188,0.0992,2692.4,2691.9,3.59275854]
[1739781094367,0.0992,2692.4,2692.3,0.04621669]
[1739781094562,0.0992,2692.4,2692.1,3.71451]
[1739781094769,0.0992,2692.4,2692.0,3.71467]
[1739781094968,0.0992,2692.4,2692.2,0.04621669]
[1739781095197,0.0992,2692.4,2692.0,3.71461]
[1739781095518,0.0992,2692.4,2691.9,3.55561265]
[1739781095667,3.81337,2692.4,2692.1,0.04621669]
[1739781095867,3.81337,2692.4,2691.9,3.55561265]
[1739781096117,0.0992,2692.4,2692.0,0.04621669]
[1739781096285,0.0992,2692.4,2692.0,3.76091669]
[1739781097165,0.0992,2692.4,2692.0,0.04621669]
[1739781097370,0.4957,2692.3,2692.0,0.04621669]
[1739781097809,0.4957,2692.3,2691.2,7.27134265]
[1739781097810,5.8357,2692.3,2691.2,7.27134265]
[1739781098010,0.4957,2692.1,2691.2,8.52367104]
[1739781098328,0.272,2692.0,2691.3,0.0437518]
[1739781098492,0.4957,2691.9,2691.3,0.0437518]
[1739781099872,3.71533,2691.6,2691.3,0.0437518]
[1739781100079,7.43004,2691.8,2691.2,7.27142265]
[1739781100381,7.43004,2691.8,2691.3,0.04407151]
[1739781100588,3.71514,2691.7,2691.3,0.04407151]
[1739781100814,3.71514,2691.7,2691.2,7.27142265]
[1739781101047,3.71498,2691.8,2691.2,7.27142265]
[1739781101259,3.71527,2691.6,2691.3,0.04407151]
[1739781101545,3.71553,2691.4,2691.2,3.55561265]
[1739781101901,3.71553,2691.4,2690.9,3.55561265]
[1739781102102,7.43118,2691.4,2690.9,3.55561265]
[1739781102351,3.71553,2691.4,2690.9,3.55561265]
[1739781102554,3.71576,2691.3,2690.9,3.55561265]
[1739781102756,3.71603,2691.1,2690.9,3.55561265]
[1739781103065,3.71655,2690.7,2690.3,3.55561265]
[1739781103749,3.7164,2690.8,2690.3,3.55561265]
[1739781103902,3.71652,2690.7,2690.3,4.36321392]
[1739781104752,7.43312,2690.7,2690.3,4.36321392]
[1739781105049,3.71652,2690.7,2690.4,0.04277524]
[1739781106749,3.71642,2690.8,2690.4,0.04277524]
[1739781107052,4.21202,2690.9,2690.4,0.04277524]
[1739781107248,7.92838,2690.9,2690.4,0.04277524]
[1739781107432,3.71639,2690.8,2690.4,0.04277524]
[1739781107806,3.7165,2690.7,2690.4,0.04277524]
[1739781108408,3.71642,2690.8,2690.4,0.04277524]
[1739781109311,3.71651,2690.7,2690.4,0.04277524]
[1739781109511,4.212,2690.9,2690.4,0.04277524]
[1739781109723,3.71636,2690.8,2690.4,0.04277524]
[1739781110155,0.4957,2690.9,2690.4,0.04277524]
[1739781110338,0.4957,2690.9,2690.4,3.75963524]
[1739781110541,3.71637,2690.8,2690.4,0.04277524]
[1739781111151,0.4957,2690.9,2690.4,0.04277524]
[1739781111445,3.71623,2690.9,2690.4,3.75957524]
[1739781112195,5.34,2691.1,2690.6,3.55561265]
[1739781112309,0.273,2690.9,2690.7,3.71648]
[1739781112511,0.273,2690.9,2690.7,3.76041663]
[1739781113250,0.273,2690.9,2690.7,0.04393663]
[1739781114275,0.4957,2691.6,2690.8,0.55]
[1739781114413,0.273,2691.4,2691.1,3.71591]
[1739781114758,0.273,2691.4,2691.2,0.0443407]
[1739781115168,0.273,2691.4,2691.1,3.71592]
[1739781115364,0.273,2691.4,2691.3,0.0443407]
[1739781115656,0.273,2691.4,2691.1,1.17597227]
[1739781115866,0.273,2691.4,2691.1,4.89190227]
[1739781116069,0.273,2691.4,2691.2,3.7601307]
[1739781116645,0.273,2691.4,2691.2,0.0443407]
[1739781117467,0.273,2691.4,2691.3,0.0443407]
[1739781117763,0.273,2691.4,2691.0,7.27167265]
[1739781117974,0.273,2691.4,2691.3,0.0443407]
[1739781118121,0.273,2691.4,2691.2,3.71572]
[1739781118321,0.273,2691.4,2691.3,0.0443407]
[1739781118578,0.273,2691.4,2691.3,7.31562335]
[1739781118877,0.273,2691.4,2691.3,3.59995335]
[1739781119032,4.21062,2691.9,2691.4,4.54443]
[1739781119369,0.273,2691.8,2691.5,3.71531]
[1739781119580,0.273,2691.8,2691.6,7.27087265]
[1739781119929,0.273,2691.8,2691.7,3.71512]
[1739781120471,0.273,2691.8,2691.7,3.75893878]
[1739781120672,0.273,2691.8,2691.7,4.86564794]
[1739781121178,8.351,2692.3,2691.8,0.8289]
[1739781121468,0.85100862,2692.4,2692.2,3.55561265]
[1739781121667,0.0992,2692.4,2692.3,4.54319]
[1739781121817,0.0992,2692.4,2692.3,5.72822643]
[1739781122018,0.0992,2692.4,2692.3,6.32119514]
[1739781123674,0.0992,2692.4,2692.3,5.49229514]
[1739781123832,0.0992,2692.4,2692.3,6.35832737]
[1739781124473,0.0992,2692.4,2692.3,9.35832737]
[1739781124668,0.0992,2692.7,2692.4,3.55]
[1739781124975,0.0992,2692.7,2692.6,11.64839265]
[1739781125465,0.0992,2692.7,2692.6,11.69085667]
[1739781126175,0.0992,2692.7,2692.6,4.97697667]
[1739781126472,3.81294,2692.7,2692.6,0.04246402]
[1739781126780,3.71407,2692.5,2692.0,4.38451265]
[1739781127487,3.71393,2692.6,2692.0,8.09911265]
[1739781127779,3.71416,2692.4,2692.0,4.38451265]
[1739781128130,3.71402,2692.5,2692.0,4.38451265]
[1739781128574,3.71402,2692.5,2692.0,8.09918265]
[1739781128794,3.71402,2692.5,2692.0,4.38451265]
[1739781129283,0.3712,2692.7,2692.0,8.90915692]
[1739781129845,0.3712,2692.7,2692.0,5.19444692]
[1739781130197,0.3712,2692.7,2692.0,3.55561265]
[1739781130381,0.4957,2692.6,2691.7,8.64959265]
[1739781130588,0.4957,2692.6,2691.7,4.38451265]
[1739781131749,3.71459,2692.1,2691.7,4.38451265]
[1739781132452,3.71476,2692.0,2691.7,3.55561265]
[1739781132652,3.71498,2691.8,2691.7,3.55561265]
[1739781133447,3.71498,2691.8,2691.4,4.38451265]
[1739781133677,3.71498,2691.8,2691.4,4.36562192]
[1739781133875,3.71498,2691.8,2691.4,3.55561265]
[1739781134248,0.272,2691.9,2691.4,3.55561265]
[1739781134550,3.71499,2691.8,2691.4,3.55561265]
[1739781134928,3.71499,2691.8,2691.5,0.04000661]
[1739781135312,3.71521,2691.7,2691.5,0.04000661]
[1739781135903,3.71503,2691.8,2691.5,0.04000661]
[1739781136631,7.43014,2691.8,2691.5,0.04000661]
[1739781136934,3.71514,2691.7,2691.5,0.04000661]
[1739781137286,3.71526,2691.6,2691.5,0.04000661]
[1739781137979,3.71572,2691.3,2691.1,3.55561265]
[1739781138959,3.71549,2691.5,2691.1,3.91117392]
[1739781139658,3.71563,2691.4,2691.1,3.91117392]
[1739781139962,3.71575,2691.3,2691.1,3.55561265]
[1739781140769,3.7155,2691.5,2690.8,5.06749]
[1739781140770,3.71615,2691.0,2690.8,4.35681265]
[1739781140922,3.71595,2691.1,2690.8,4.35681265]
[1739781141268,3.98795,2691.1,2690.8,4.35681265]
[1739781142059,3.71612,2691.0,2690.8,3.55561265]
[1739781142966,0.272,2691.1,2690.8,3.55561265]
[1739781143259,0.272,2691.1,2690.5,3.55561265]
[1739781143668,0.272,2691.1,2690.5,4.26199035]
[1739781146170,0.272,2691.1,2690.8,3.55561265]
[1739781146883,3.7161,2691.0,2690.8,3.55561265]
[1739781147179,3.71611,2691.0,2690.6,4.35681265]
[1739781147332,3.71644,2690.8,2690.6,3.55561265]
[1739781147532,4.21185,2691.0,2690.6,3.55561265]
[1739781147731,3.71611,2691.0,2690.6,3.55561265]
[1739781147934,3.71611,2691.0,2690.6,4.73465492]
[1739781148578,3.0,2691.3,2690.9,3.55561265]
[1739781148782,3.0,2691.3,2690.9,4.31201265]
[1739781148982,0.1736,2691.2,2690.9,8.02820265]
[1739781149279,9.05536,2691.6,2690.9,8.02816265]
[1739781149491,0.272,2691.4,2691.2,3.55561265]
[1739781149633,0.272,2691.4,2691.2,7.27141265]
[1739781149992,3.98755,2691.4,2691.3,0.04246173]
[1739781150338,3.98755,2691.4,2691.2,3.55561265]
[1739781150582,3.98755,2691.4,2691.3,0.04246173]
[1739781151066,0.4957,2691.3,2690.9,3.55561265]
[1739781151633,0.272,2691.4,2690.9,4.33780792]
[1739781151838,0.272,2691.4,2691.1,4.4723]
[1739781152268,3.73678411,2692.2,2691.1,4.4723]
[1739781152269,0.4957,2692.1,2691.2,7.27131265]
[1739781152580,0.272,2691.5,2691.2,3.55561265]
[1739781153353,0.272,2691.5,2691.2,7.27139265]
[1739781153554,0.272,2691.5,2691.2,3.55561265]
[1739781154381,0.272,2691.5,2691.2,7.27142265]
[1739781154585,0.272,2691.7,2691.2,7.27142265]
[1739781154740,3.98724,2691.7,2691.2,8.07420491]
[1739781154943,0.4957,2691.6,2691.2,3.55561265]
[1739781155280,3.71553,2691.5,2691.1,0.7564]
[1739781155604,3.7154,2691.5,2691.1,0.7564]
[1739781156379,3.7154,2691.5,2690.9,3.55561265]
[1739781156581,3.71574,2691.3,2690.9,3.55561265]
[1739781156779,3.71584,2691.2,2690.9,3.55561265]
[1739781158839,0.4957,2691.6,2690.9,3.55561265]
[1739781159044,4.85349321,2691.6,2690.9,3.55561265]
[1739781161086,3.71566,2691.4,2690.9,3.55561265]
[1739781161297,3.71547,2691.5,2690.9,7.27171265]
[1739781161454,3.7156,2691.4,2690.9,3.55561265]
[1739781161654,3.7157,2691.3,2690.9,3.55561265]
[1739781162290,3.7156,2691.4,2690.9,3.55561265]
[1739781162291,3.71582,2691.2,2690.9,3.55561265]
[1739781162702,3.7156,2691.4,2690.9,3.55561265]
[1739781163296,3.71638,2690.8,2690.5,0.7564]
[1739781163607,3.71636,2690.8,2690.5,0.7564]
[1739781163887,3.71654,2690.7,2690.5,0.7564]
[1739781164089,3.71636,2690.8,2690.5,0.7564]
[1739781164252,3.71664,2690.6,2690.3,3.55561265]
[1739781164448,3.71664,2690.6,2690.3,5.08908492]
[1739781164684,3.7165,2690.7,2690.3,5.08908492]
[1739781164974,3.7165,2690.7,2690.4,0.03926698]
[1739781165405,3.71636,2690.8,2690.4,0.03926698]
[1739781165766,3.71678,2690.5,2690.4,0.03926698]
[1739781166483,3.71664,2690.6,2690.4,0.03926698]
[1739781166704,3.7165,2690.7,2690.4,0.03926698]
[1739781166705,0.272,2690.7,2690.4,0.03926698]
[1739781166857,0.272,2690.7,2690.4,0.85107094]
[1739781167052,0.272,2690.7,2690.4,4.56793094]
[1739781167257,0.272,2690.7,2690.4,0.85107094]
[1739781167977,0.272,2690.7,2690.6,3.55561265]
[1739781168488,0.272,2690.7,2690.6,3.59506472]
[1739781168691,0.272,2690.7,2690.6,4.40742159]
[1739781169080,0.272,2690.7,2690.6,8.93026159]
[1739781169292,9.05575,2691.3,2690.6,8.93026159]
[1739781169503,3.71575,2691.3,2690.8,3.71628]
[1739781169677,0.272,2691.2,2690.8,3.71628]
[1739781170004,0.272,2691.2,2690.9,3.59506472]
[1739781170706,0.272,2691.4,2691.1,3.71587]
[1739781171209,0.272,2691.4,2691.2,0.03930904]
[1739781171803,0.272,2691.4,2691.0,0.8062]
[1739781171804,3.98763,2691.4,2691.0,0.8062]
[1739781172000,3.98763,2691.4,2691.3,0.03930904]
[1739781172155,3.98755,2691.4,2690.9,3.55561265]
[1739781172360,3.98755,2691.4,2691.3,0.03909032]
[1739781172576,0.272,2691.4,2690.9,3.55561265]
[1739781172778,3.71567,2691.3,2690.9,3.55561265]
[1739781173204,7.43144,2691.3,2690.9,3.55561265]
[1739781173504,3.71567,2691.3,2690.9,3.55561265]
[1739781173678,3.71582,2691.2,2690.9,3.55561265]
[1739781173875,3.71582,2691.2,2690.8,0.8062]
[1739781174106,3.71612,2691.0,2690.6,3.55561265]
[1739781174403,7.43232,2691.0,2690.6,3.55561265]
[1739781174614,3.71623,2690.9,2690.6,3.55561265]
[1739781174904,3.71609,2691.0,2690.6,3.55561265]